[Event "CZE-ch Youth G10-G12-G14 2022"]
[Site "Luhacovice"]
[Date "2022.03.19"]
[Round "9.31"]
[White "Janouskova, Adela"]
[Black "Dobsa, Emma"]
[Result "0-1"]
[ECO "C49"]
[WhiteElo "1585"]
[BlackElo "1425"]
[Annotator "NA"]
[PlyCount "111"]
[EventDate "2022.03.12"]
[EventType "swiss"]
[EventCountry "CZE"]
[SourceTitle "playchess.com"]
[Source "ChessBase"]
[SourceQuality "1"]
[TimeControl "40/5400+30:1800+30"]

1. e4 {[%emt 0:00:06]} e5 {[%emt 0:00:32]} 2. Nf3 {[%emt 0:00:34]} Nc6 {[%emt 0:00:19]} 3. Nc3 {[%emt 0:00:31]} Nf6 {[%emt 0:00:10]} 4. Bb5 {[%emt 0:00:30]} Bb4 {[%emt 0:00:43]} 5. O-O {[%emt 0:00:48]} O-O {[%emt 0:00:06]} 6. d3 {[%emt 0:00:17]} d6 {[%emt 0:00:06]} 7. Bg5 {[%emt 0:01:04]} Bxc3 {[%emt 0:00:15]} 8. bxc3 {[%emt 0:00:05]} Qe7 {[%emt 0:01:18]} 9. Rb1 {[%emt 0:03:52]} Nd8 {[%emt 0:00:38]} 10. Re1 {[%emt 0:01:56]} Ne6 {[%emt 0:00:34]} 11. Bc1 {[%emt 0:01:46]} c6 {[%emt 0:07:53]} 12. Bc4 {[%emt 0:01:49]} b5 {[%emt 0:07:54]} 13. Bb3 {[%emt 0:00:45]} h6 {[%emt 0:04:19]} 14. d4 {[%emt 0:06:13]} Rd8 {[%emt 0:03:21]} 15. c4 {[%emt 0:08:09]} bxc4 {[%emt 0:08:05]} 16. Bxc4 {[%emt 0:00:16]} Nxd4 {[%emt 0:01:02]} 17. Nxd4 {[%emt 0:01:16]} exd4 {[%emt 0:00:08]} 18. Qxd4 {[%emt 0:05:52]} d5 {[%emt 0:00:33]} 19. Bb3 {[%emt 0:07:14]} dxe4 {[%emt 0:02:17]} 20. Qc3 {[%emt 0:02:09]} Qd6 {[%emt 0:10:28]} 21. Ba3 {[%emt 0:09:51]} Qc7 {[%emt 0:11:13]} 22. Bb2 {[%emt 0:02:40]} Bf5 {[%emt 0:03:21]} 23. Re3 {[%emt 0:03:54]} Rd7 {[%emt 0:06:30]} 24. Rg3 {[%emt 0:15:30]} Qd8 {[%emt 0:14:59]} 25. h3 {[%emt 0:04:44]} Rd1+ {[%emt 0:03:58]} 26. Rxd1 {[%emt 0:08:47]} Qxd1+ {[%emt 0:00:30]} 27. Kh2 {[%emt 0:00:30]} Qd6 {[%emt 0:00:30]} 28. Ba3 {[%emt 0:00:30]} Qc7 {[%emt 0:01:10]} 29. Kg1 {[%emt 0:04:42]} Rd8 {[%emt 0:01:50]} 30. Kf1 {[%emt 0:05:34]} Kh7 {[%emt 0:03:20]} 31. Bb2 {[%emt 0:02:04]} Bg6 {[%emt 0:02:30]} 32. h4 {[%emt 0:01:39]} Rd1+ {[%emt 0:03:50]} 33. Ke2 {[%emt 0:00:09]} Bh5+ {[%emt 0:00:18]} 34. f3 {[%emt 0:01:07]} Qxg3 {[%emt 0:00:37]} 35. Kxd1 {[%emt 0:00:03]} Qxg2 {[%emt 0:00:25]} 36. Qe3 {[%emt 0:01:00]} Qxf3+ {[%emt 0:02:00]} 37. Qxf3 {[%emt 0:00:31]} Bxf3+ {[%emt 0:00:04]} 38. Kd2 {[%emt 0:00:12]} Kg6 {[%emt 0:00:31]} 39. Bd4 {[%emt 0:00:24]} a6 {[%emt 0:00:55]} 40. Bc4 {[%emt 0:00:16]} a5 {[%emt 0:00:00]} 41. a4 {[%emt 0:02:04]} Nd7 {[%emt 0:01:40]} 42. Bb3 {[%emt 0:02:27]} f5 {[%emt 0:02:58]} 43. Ke3 {[%emt 0:00:37]} Nf6 {[%emt 0:02:28]} 44. Bb6 {[%emt 0:03:17]} Ng4+ {[%emt 0:01:02]} 45. Kd2 {[%emt 0:00:36]} e3+ {[%emt 0:00:43]} 46. Ke1 {[%emt 0:01:00]} f4 {[%emt 0:02:51]} 47. Bxa5 {[%emt 0:00:36]} Be4 {[%emt 0:02:55]} 48. Bb6 {[%emt 0:02:56]} f3 {[%emt 0:01:34]} 49. Bc4 {[%emt 0:01:49]} f2+ {[%emt 0:04:20]} 50. Kd1 {[%emt 0:01:20]} Bg2 {[%emt 0:01:28]} 51. a5 {[%emt 0:01:24]} f1=Q+ {[%emt 0:00:29]} 52. Bxf1 {[%emt 0:00:21]} Bxf1 {[%emt 0:00:04]} 53. Bd4 {[%emt 0:00:29]} Bb5 {[%emt 0:00:35]} 54. Ke1 {[%emt 0:00:15]} e2 {[%emt 0:00:45]} 55. c3 {[%emt 0:00:23]} Nh2 {[%emt 0:01:12]} 56. Bf2 {[%emt 0:01:00]} 0-1

[Event "CZE-ch Youth G10-G12-G14 2022"]
[Site "Luhacovice"]
[Date "2022.03.19"]
[Round "9.32"]
[White "Hetfleischova, Elen"]
[Black "Sikorova, Jana"]
[Result "0-1"]
[ECO "B28"]
[WhiteElo "1363"]
[BlackElo "1427"]
[Annotator "NA"]
[PlyCount "69"]
[EventDate "2022.03.12"]
[EventType "swiss"]
[EventCountry "CZE"]
[SourceTitle "playchess.com"]
[Source "ChessBase"]
[SourceQuality "1"]
[TimeControl "40/5400+30:1800+30"]

1. e4 {[%emt 0:00:02]} c5 {[%emt 0:00:05]} 2. Nf3 {[%emt 0:00:08]} a6 {[%emt 0:00:07]} 3. d4 {[%emt 0:00:10]} cxd4 {[%emt 0:00:07]} 4. Nxd4 {[%emt 0:00:08]} Nf6 {[%emt 0:00:06]} 5. Nc3 {[%emt 0:00:17]} e5 {[%emt 0:00:11]} 6. Nb3 {[%emt 0:00:43]} Bb4 {[%emt 0:00:25]} 7. Qf3 {[%emt 0:00:48]} d6 {[%emt 0:02:05]} 8. Bg5 {[%emt 0:05:24]} Bxc3+ {[%emt 0:03:41]} 9. bxc3 {[%emt 0:04:24]} Nbd7 {[%emt 0:02:24]} 10. Rd1 {[%emt 0:04:25]} Qc7 {[%emt 0:03:54]} 11. c4 {[%emt 0:01:52]} Qc6 {[%emt 0:09:43]} 12. Bd3 {[%emt 0:02:20]} b6 {[%emt 0:01:19]} 13. O-O {[%emt 0:01:03]} O-O {[%emt 0:01:11]} 14. Rfe1 {[%emt 0:01:40]} Bb7 {[%emt 0:04:11]} 15. Rd2 {[%emt 0:03:21]} Rac8 {[%emt 0:03:53]} 16. Rde2 {[%emt 0:04:33]} Rfe8 {[%emt 0:01:39]} 17. Qg3 {[%emt 0:04:37]} Re6 {[%emt 0:07:06]} 18. Qh3 {[%emt 0:04:42]} Nc5 {[%emt 0:04:16]} 19. f4 {[%emt 0:08:11]} Nfd7 {[%emt 0:14:59]} 20. f5 {[%emt 0:04:25]} Ree8 {[%emt 0:01:58]} 21. f6 {[%emt 0:05:48]} Ne6 {[%emt 0:08:51]} 22. Be3 {[%emt 0:02:04]} Nxf6 {[%emt 0:00:19]} 23. Bd2 {[%emt 0:03:52]} a5 {[%emt 0:00:55]} 24. c3 {[%emt 0:03:04]} Ba6 {[%emt 0:02:37]} 25. Rf2 {[%emt 0:02:45]} Bxc4 {[%emt 0:02:14]} 26. Bc2 {[%emt 0:01:54]} Nc5 {[%emt 0:01:39]} 27. Qh4 {[%emt 0:03:34]} Nd3 {[%emt 0:03:55]} 28. Bxd3 {[%emt 0:01:39]} Bxd3 {[%emt 0:00:39]} 29. Rxf6 {[%emt 0:00:11]} gxf6 {[%emt 0:01:00]} 30. Qg3+ {[%emt 0:01:31]} Kh8 {[%emt 0:01:07]} 31. Bh6 {[%emt 0:00:31]} Rg8 {[%emt 0:01:03]} 32. Qxd3 {[%emt 0:02:02]} Qxc3 {[%emt 0:01:33]} 33. Qf1 {[%emt 0:01:10]} f5 {[%emt 0:02:48]} 34. Re3 {[%emt 0:04:18]} Qb2 {[%emt 0:03:36]} 35. Qxf5 {[%emt 0:02:03]} 0-1

[Event "CZE-ch Youth G10-G12-G14 2022"]
[Site "Luhacovice"]
[Date "2022.03.19"]
[Round "9.33"]
[White "Cinkova, Vicky"]
[Black "Dorazilova, Kristyna"]
[Result "0-1"]
[ECO "A45"]
[WhiteElo "1317"]
[BlackElo "1240"]
[Annotator "NA"]
[PlyCount "68"]
[EventDate "2022.03.12"]
[EventType "swiss"]
[EventCountry "CZE"]
[SourceTitle "playchess.com"]
[Source "ChessBase"]
[SourceQuality "1"]
[TimeControl "40/5400+30:1800+30"]

1. d4 {[%emt 0:00:17]} Nf6 {[%emt 0:00:05]} 2. Bg5 {[%emt 0:00:47]} e6 {[%emt 0:00:49]} 3. e3 {[%emt 0:00:44]} b6 {[%emt 0:00:11]} 4. f4 {[%emt 0:00:49]} Bb7 {[%emt 0:00:37]} 5. Nf3 {[%emt 0:00:27]} h6 {[%emt 0:00:14]} 6. Bh4 {[%emt 0:00:37]} Be7 {[%emt 0:00:26]} 7. Bd3 {[%emt 0:01:33]} O-O {[%emt 0:03:15]} 8. c3 {[%emt 0:03:19]} d5 {[%emt 0:01:06]} 9. Bc2 {[%emt 0:05:33]} c5 {[%emt 0:01:25]} 10. Ne5 {[%emt 0:03:44]} Nbd7 {[%emt 0:01:59]} 11. O-O {[%emt 0:05:59]} c4 {[%emt 0:03:25]} 12. Rf3 {[%emt 0:03:36]} b5 {[%emt 0:10:34]} 13. Rg3 {[%emt 0:02:10]} Kh8 {[%emt 0:04:34]} 14. Bg5 {[%emt 0:11:07]} a5 {[%emt 0:13:16]} 15. Nxd7 {[%emt 0:03:40]} Qxd7 {[%emt 0:00:30]} 16. Bxf6 {[%emt 0:00:10]} Bxf6 {[%emt 0:00:10]} 17. Qh5 {[%emt 0:00:49]} Be7 {[%emt 0:08:03]} 18. Qg4 {[%emt 0:03:22]} Rg8 {[%emt 0:02:55]} 19. Qh5 {[%emt 0:00:24]} f5 {[%emt 0:05:03]} 20. Rg6 {[%emt 0:03:07]} Kh7 {[%emt 0:01:18]} 21. Rxe6 {[%emt 0:00:24]} g6 {[%emt 0:02:04]} 22. Bxf5 {[%emt 0:00:27]} Qxe6 {[%emt 0:00:50]} 23. Bxe6 {[%emt 0:00:19]} gxh5 {[%emt 0:00:07]} 24. Bxg8+ {[%emt 0:00:10]} Rxg8 {[%emt 0:00:21]} 25. Nd2 {[%emt 0:00:51]} Bc8 {[%emt 0:00:53]} 26. Nf3 {[%emt 0:00:27]} Bh3 {[%emt 0:00:47]} 27. g3 {[%emt 0:00:15]} h4 {[%emt 0:00:30]} 28. Kf2 {[%emt 0:00:52]} hxg3+ {[%emt 0:09:13]} 29. hxg3 {[%emt 0:00:10]} Bg4 {[%emt 0:02:23]} 30. Ne5 {[%emt 0:00:46]} Bd8 {[%emt 0:00:46]} 31. Rh1 {[%emt 0:01:42]} Be6 {[%emt 0:00:46]} 32. Kf3 {[%emt 0:03:13]} Bc7 {[%emt 0:01:13]} 33. Nc6 {[%emt 0:02:06]} Rg7 {[%emt 0:01:20]} 34. Rh5 {[%emt 0:03:55]} Bg4+ {[%emt 0:00:35]} 0-1

[Event "CZE-ch Youth G10-G12-G14 2022"]
[Site "Luhacovice"]
[Date "2022.03.19"]
[Round "9.34"]
[White "Dominikova, Denisa"]
[Black "Kaplanova, Dominika"]
[Result "1/2-1/2"]
[ECO "B13"]
[WhiteElo "1254"]
[BlackElo "1269"]
[Annotator "NA"]
[PlyCount "61"]
[EventDate "2022.03.12"]
[EventType "swiss"]
[EventCountry "CZE"]
[SourceTitle "playchess.com"]
[Source "ChessBase"]
[SourceQuality "1"]
[TimeControl "40/5400+30:1800+30"]

1. e4 {[%emt 0:00:06]} c6 {[%emt 0:00:14]} 2. d4 {[%emt 0:00:34]} d5 {[%emt 0:00:24]} 3. exd5 {[%emt 0:00:36]} cxd5 {[%emt 0:00:09]} 4. c4 {[%emt 0:00:49]} Nf6 {[%emt 0:01:45]} 5. Nc3 {[%emt 0:01:01]} Nc6 {[%emt 0:02:18]} 6. Nf3 {[%emt 0:04:39]} Bg4 {[%emt 0:02:54]} 7. Be3 {[%emt 0:09:14]} e6 {[%emt 0:02:56]} 8. c5 {[%emt 0:07:56]} Be7 {[%emt 0:03:25]} 9. Be2 {[%emt 0:02:44]} O-O {[%emt 0:01:08]} 10. O-O {[%emt 0:01:25]} b6 {[%emt 0:07:08]} 11. Qa4 {[%emt 0:09:36]} Bxf3 {[%emt 0:11:09]} 12. Bxf3 {[%emt 0:03:17]} Qd7 {[%emt 0:01:55]} 13. b4 {[%emt 0:04:14]} bxc5 {[%emt 0:02:27]} 14. bxc5 {[%emt 0:01:41]} Rfb8 {[%emt 0:06:14]} 15. Rab1 {[%emt 0:03:08]} Rxb1 {[%emt 0:19:53]} 16. Rxb1 {[%emt 0:01:09]} Rb8 {[%emt 0:00:30]} 17. Rxb8+ {[%emt 0:02:04]} Nxb8 {[%emt 0:00:07]} 18. Qxd7 {[%emt 0:01:19]} Nfxd7 {[%emt 0:00:25]} 19. Be2 {[%emt 0:06:31]} a6 {[%emt 0:03:55]} 20. Kf1 {[%emt 0:04:24]} Kf8 {[%emt 0:02:04]} 21. Ke1 {[%emt 0:02:40]} Ke8 {[%emt 0:00:23]} 22. Kd2 {[%emt 0:02:54]} Kd8 {[%emt 0:03:18]} 23. Kc2 {[%emt 0:02:38]} Kc7 {[%emt 0:04:29]} 24. f4 {[%emt 0:08:45]} Kb7 {[%emt 0:02:02]} 25. Kb3 {[%emt 0:01:40]} Bf6 {[%emt 0:00:30]} 26. Ka4 {[%emt 0:01:21]} Nc6 {[%emt 0:01:20]} 27. Bd3 {[%emt 0:03:28]} Nxd4 {[%emt 0:08:06]} 28. Bxh7 {[%emt 0:01:16]} Nxc5+ {[%emt 0:03:39]} 29. Kb4 {[%emt 0:03:17]} Kb6 {[%emt 0:01:59]} 30. Na4+ {[%emt 0:02:52]} Nxa4 {[%emt 0:01:00]} 31. Kxa4 {[%emt 0:00:22]} 1/2-1/2

[Event "CZE-ch Youth G10-G12-G14 2022"]
[Site "Luhacovice"]
[Date "2022.03.19"]
[Round "9.35"]
[White "Mikesova, Lenka"]
[Black "Kavanova, Anezka"]
[Result "1/2-1/2"]
[ECO "B76"]
[WhiteElo "1364"]
[BlackElo "1089"]
[Annotator "NA"]
[PlyCount "98"]
[EventDate "2022.03.12"]
[EventType "swiss"]
[EventCountry "CZE"]
[SourceTitle "playchess.com"]
[Source "ChessBase"]
[SourceQuality "1"]
[TimeControl "40/5400+30:1800+30"]

1. e4 {[%emt 0:00:04]} c5 {[%emt 0:00:02]} 2. Nf3 {[%emt 0:00:13]} d6 {[%emt 0:00:04]} 3. d4 {[%emt 0:00:17]} cxd4 {[%emt 0:00:03]} 4. Nxd4 {[%emt 0:00:13]} Nf6 {[%emt 0:00:06]} 5. Nc3 {[%emt 0:00:44]} g6 {[%emt 0:00:04]} 6. Be3 {[%emt 0:00:39]} Bg7 {[%emt 0:00:12]} 7. f3 {[%emt 0:00:25]} O-O {[%emt 0:01:28]} 8. Qd2 {[%emt 0:02:05]} Nc6 {[%emt 0:00:09]} 9. O-O-O {[%emt 0:01:04]} Be6 {[%emt 0:01:18]} 10. h4 {[%emt 0:04:35]} Qa5 {[%emt 0:01:31]} 11. Nxe6 {[%emt 0:03:41]} fxe6 {[%emt 0:00:39]} 12. Bc4 {[%emt 0:02:49]} Kf7 {[%emt 0:01:51]} 13. g4 {[%emt 0:03:28]} Ne5 {[%emt 0:01:08]} 14. Be2 {[%emt 0:03:13]} Rac8 {[%emt 0:02:14]} 15. h5 {[%emt 0:01:57]} Nc4 {[%emt 0:03:30]} 16. Bxc4 {[%emt 0:01:54]} Rxc4 {[%emt 0:00:17]} 17. hxg6+ {[%emt 0:01:02]} hxg6 {[%emt 0:00:21]} 18. Bh6 {[%emt 0:02:08]} Rg8 {[%emt 0:07:02]} 19. Bxg7 {[%emt 0:01:18]} Rxg7 {[%emt 0:04:52]} 20. Qe2 {[%emt 0:13:55]} b5 {[%emt 0:30:02]} 21. f4 {[%emt 0:03:15]} Qb4 {[%emt 0:00:30]} 22. f5 {[%emt 0:04:34]} Rc5 {[%emt 0:04:20]} 23. g5 {[%emt 0:04:52]} Ng8 {[%emt 0:02:26]} 24. fxg6+ {[%emt 0:03:12]} Ke8 {[%emt 0:06:58]} 25. Rh7 {[%emt 0:11:58]} Rxg6 {[%emt 0:01:09]} 26. e5 {[%emt 0:05:23]} Qf4+ {[%emt 0:03:54]} 27. Kb1 {[%emt 0:01:37]} Rxe5 {[%emt 0:01:55]} 28. Qg2 {[%emt 0:01:16]} d5 {[%emt 0:01:15]} 29. Qg1 {[%emt 0:03:26]} Re3 {[%emt 0:06:42]} 30. Qh1 {[%emt 0:06:46]} a6 {[%emt 0:03:53]} 31. Nxd5 {[%emt 0:02:09]} exd5 {[%emt 0:02:43]} 32. Qxd5 {[%emt 0:00:16]} Rd6 {[%emt 0:02:28]} 33. Qxg8+ {[%emt 0:02:49]} Qf8 {[%emt 0:01:34]} 34. Qxf8+ {[%emt 0:05:11]} Kxf8 {[%emt 0:00:30]} 35. Kc1 {[%emt 0:00:30]} Rxd1+ {[%emt 0:02:30]} 36. Kxd1 {[%emt 0:00:08]} Re6 {[%emt 0:00:05]} 37. Rh6 {[%emt 0:02:43]} Kf7 {[%emt 0:02:10]} 38. Kd2 {[%emt 0:01:32]} Rxh6 {[%emt 0:02:10]} 39. gxh6 {[%emt 0:00:06]} Kg6 {[%emt 0:00:07]} 40. a4 {[%emt 0:00:54]} Kxh6 {[%emt 0:02:51]} 41. axb5 {[%emt 0:31:29]} axb5 {[%emt 0:30:11]} 42. b4 {[%emt 0:00:40]} Kg7 {[%emt 0:00:00]} 43. c4 {[%emt 0:00:00]} Kf6 {[%emt 0:00:00]} 44. c5 {[%emt 0:00:00]} Ke6 {[%emt 0:00:00]} 45. Ke3 {[%emt 0:00:00]} Ke5 {[%emt 0:00:00]} 46. Kd3 {[%emt 0:00:00]} Kd5 {[%emt 0:00:00]} 47. Ke3 {[%emt 0:00:00]} Ke5 {[%emt 0:00:00]} 48. Kd3 {[%emt 0:00:00]} Kd5 {[%emt 0:00:00]} 49. Ke3 {[%emt 0:00:00]} Ke5 {[%emt 0:00:00]} 1/2-1/2

[Event "CZE-ch Youth G10-G12-G14 2022"]
[Site "Luhacovice"]
[Date "2022.03.19"]
[Round "9.36"]
[White "Stavova, Marketa"]
[Black "Archlebova, Stela"]
[Result "1/2-1/2"]
[ECO "C54"]
[WhiteElo "1146"]
[BlackElo "1121"]
[Annotator "NA"]
[PlyCount "69"]
[EventDate "2022.03.12"]
[EventType "swiss"]
[EventCountry "CZE"]
[SourceTitle "playchess.com"]
[Source "ChessBase"]
[SourceQuality "1"]
[TimeControl "40/5400+30:1800+30"]

1. e4 {[%emt 0:00:07]} e5 {[%emt 0:00:10]} 2. Nf3 {[%emt 0:00:20]} Nc6 {[%emt 0:00:14]} 3. Bc4 {[%emt 0:00:22]} Bc5 {[%emt 0:00:23]} 4. d3 {[%emt 0:01:24]} h6 {[%emt 0:00:28]} 5. O-O {[%emt 0:00:48]} Nf6 {[%emt 0:00:12]} 6. c3 {[%emt 0:01:01]} Na5 {[%emt 0:12:42]} 7. Nxe5 {[%emt 0:05:01]} Nxc4 {[%emt 0:01:04]} 8. Nxc4 {[%emt 0:00:08]} d5 {[%emt 0:02:07]} 9. exd5 {[%emt 0:00:29]} Nxd5 {[%emt 0:01:08]} 10. d4 {[%emt 0:01:21]} Be7 {[%emt 0:00:32]} 11. Qf3 {[%emt 0:02:07]} O-O {[%emt 0:02:06]} 12. Ne3 {[%emt 0:03:38]} Nf6 {[%emt 0:02:12]} 13. Nd2 {[%emt 0:01:37]} Rb8 {[%emt 0:03:43]} 14. Re1 {[%emt 0:03:38]} b6 {[%emt 0:01:44]} 15. Ndc4 {[%emt 0:02:56]} Bb7 {[%emt 0:02:41]} 16. Qe2 {[%emt 0:00:51]} Re8 {[%emt 0:01:12]} 17. Qc2 {[%emt 0:03:26]} Bd6 {[%emt 0:04:24]} 18. Nxd6 {[%emt 0:04:27]} Qxd6 {[%emt 0:02:33]} 19. Bd2 {[%emt 0:00:06]} Qc6 {[%emt 0:02:15]} 20. f3 {[%emt 0:00:45]} Rbd8 {[%emt 0:07:37]} 21. Nf5 {[%emt 0:02:45]} Rxe1+ {[%emt 0:09:08]} 22. Rxe1 {[%emt 0:00:08]} Kf8 {[%emt 0:03:02]} 23. Qc1 {[%emt 0:05:05]} Ng8 {[%emt 0:01:45]} 24. c4 {[%emt 0:02:36]} Qg6 {[%emt 0:01:10]} 25. Nh4 {[%emt 0:01:06]} Qf6 {[%emt 0:01:50]} 26. d5 {[%emt 0:01:35]} Qd4+ {[%emt 0:15:12]} 27. Kh1 {[%emt 0:00:51]} Nf6 {[%emt 0:00:55]} 28. Nf5 {[%emt 0:01:33]} Qd3 {[%emt 0:03:15]} 29. Ng3 {[%emt 0:07:09]} c6 {[%emt 0:02:12]} 30. Re3 {[%emt 0:01:01]} Qg6 {[%emt 0:01:44]} 31. dxc6 {[%emt 0:01:38]} Bxc6 {[%emt 0:00:50]} 32. Bb4+ {[%emt 0:04:47]} Kg8 {[%emt 0:00:34]} 33. Ne2 {[%emt 0:06:57]} Qg5 {[%emt 0:02:22]} 34. Bd2 {[%emt 0:01:42]} Qg6 {[%emt 0:02:08]} 35. Ng3 {[%emt 0:05:55]} 1/2-1/2

[Event "CZE-ch Youth G10-G12-G14 2022"]
[Site "Luhacovice"]
[Date "2022.03.19"]
[Round "9.37"]
[White "Lipovska Viktorie"]
[Black "Reznickova, Sibyla"]
[Result "0-1"]
[ECO "C50"]
[WhiteElo "1189"]
[BlackElo "1304"]
[Annotator "NA"]
[PlyCount "80"]
[EventDate "2022.03.12"]
[EventType "swiss"]
[EventCountry "CZE"]
[SourceTitle "playchess.com"]
[Source "ChessBase"]
[SourceQuality "1"]
[TimeControl "40/5400+30:1800+30"]

1. e4 {[%emt 0:00:03]} e5 {[%emt 0:00:12]} 2. Nf3 {[%emt 0:00:10]} Nc6 {[%emt 0:00:23]} 3. Bc4 {[%emt 0:00:17]} Bc5 {[%emt 0:00:37]} 4. d3 {[%emt 0:00:09]} d6 {[%emt 0:01:55]} 5. h3 {[%emt 0:00:20]} Nf6 {[%emt 0:01:11]} 6. Nc3 {[%emt 0:00:20]} Be6 {[%emt 0:00:59]} 7. Nd5 {[%emt 0:00:34]} h6 {[%emt 0:02:22]} 8. Be3 {[%emt 0:00:16]} Bb6 {[%emt 0:01:09]} 9. Qd2 {[%emt 0:00:38]} O-O {[%emt 0:04:04]} 10. O-O-O {[%emt 0:00:43]} Na5 {[%emt 0:01:43]} 11. Nxb6 {[%emt 0:00:45]} axb6 {[%emt 0:02:33]} 12. Bxe6 {[%emt 0:00:38]} fxe6 {[%emt 0:00:51]} 13. d4 {[%emt 0:00:19]} Nxe4 {[%emt 0:02:08]} 14. Qd3 {[%emt 0:00:15]} d5 {[%emt 0:05:40]} 15. Nxe5 {[%emt 0:02:10]} Nxf2 {[%emt 0:07:18]} 16. Bxf2 {[%emt 0:00:15]} Rxf2 {[%emt 0:01:11]} 17. Qg3 {[%emt 0:00:16]} Qg5+ {[%emt 0:03:41]} 18. Qxg5 {[%emt 0:00:47]} hxg5 {[%emt 0:00:08]} 19. g3 {[%emt 0:00:35]} c5 {[%emt 0:01:27]} 20. Nd7 {[%emt 0:01:25]} Rc8 {[%emt 0:08:09]} 21. Nxb6 {[%emt 0:00:34]} Rc6 {[%emt 0:01:02]} 22. dxc5 {[%emt 0:00:36]} Rxc5 {[%emt 0:00:49]} 23. Rd2 {[%emt 0:00:27]} Rf3 {[%emt 0:02:14]} 24. b4 {[%emt 0:00:24]} Rb5 {[%emt 0:03:15]} 25. bxa5 {[%emt 0:00:37]} Ra3 {[%emt 0:00:57]} 26. Rd3 {[%emt 0:02:16]} Rxa2 {[%emt 0:01:02]} 27. Kd2 {[%emt 0:00:46]} Raxa5 {[%emt 0:02:53]} 28. Rb3 {[%emt 0:00:54]} Rxb3 {[%emt 0:01:23]} 29. cxb3 {[%emt 0:00:08]} Rb5 {[%emt 0:00:12]} 30. Kc3 {[%emt 0:00:56]} Rxb6 {[%emt 0:00:34]} 31. Re1 {[%emt 0:00:35]} Kf7 {[%emt 0:01:36]} 32. Rf1+ {[%emt 0:01:01]} Kg6 {[%emt 0:03:53]} 33. Re1 {[%emt 0:01:32]} Kf7 {[%emt 0:00:42]} 34. Rf1+ {[%emt 0:00:14]} Ke7 {[%emt 0:00:12]} 35. Re1 {[%emt 0:00:23]} Kd6 {[%emt 0:02:07]} 36. Rf1 {[%emt 0:00:24]} Rc6+ {[%emt 0:03:14]} 37. Kb4 {[%emt 0:00:18]} d4 {[%emt 0:00:33]} 38. Rf8 {[%emt 0:00:47]} e5 {[%emt 0:02:06]} 39. Rd8+ {[%emt 0:00:34]} Ke6 {[%emt 0:00:59]} 40. Re8+ {[%emt 0:00:20]} Kd5 {[%emt 0:00:45]} 0-1

[Event "CZE-ch Youth G10-G12-G14 2022"]
[Site "Luhacovice"]
[Date "2022.03.19"]
[Round "9.38"]
[White "Myskova, Veronika"]
[Black "Foldynova Julie"]
[Result "1-0"]
[ECO "D02"]
[WhiteElo "1117"]
[BlackElo "1000"]
[Annotator "NA"]
[PlyCount "65"]
[EventDate "2022.03.12"]
[EventType "swiss"]
[EventCountry "CZE"]
[SourceTitle "playchess.com"]
[Source "ChessBase"]
[SourceQuality "1"]
[TimeControl "40/5400+30:1800+30"]

1. d4 {[%emt 0:00:03]} d5 {[%emt 0:00:02]} 2. Bf4 {[%emt 0:00:30]} Nc6 {[%emt 0:00:46]} 3. Nf3 {[%emt 0:00:51]} Bg4 {[%emt 0:01:04]} 4. e3 {[%emt 0:02:11]} a6 {[%emt 0:01:00]} 5. Nbd2 {[%emt 0:00:53]} Nf6 {[%emt 0:00:31]} 6. c4 {[%emt 0:00:46]} e6 {[%emt 0:02:04]} 7. Be2 {[%emt 0:05:22]} Be7 {[%emt 0:01:29]} 8. O-O {[%emt 0:05:00]} O-O {[%emt 0:00:06]} 9. h3 {[%emt 0:00:52]} Bf5 {[%emt 0:01:21]} 10. a3 {[%emt 0:03:44]} Nh5 {[%emt 0:02:05]} 11. Bh2 {[%emt 0:00:37]} Be4 {[%emt 0:01:35]} 12. Nxe4 {[%emt 0:02:03]} dxe4 {[%emt 0:00:06]} 13. Nd2 {[%emt 0:00:12]} Nf6 {[%emt 0:00:29]} 14. b4 {[%emt 0:01:25]} b5 {[%emt 0:01:06]} 15. cxb5 {[%emt 0:00:17]} axb5 {[%emt 0:00:24]} 16. Bxb5 {[%emt 0:00:06]} Nb8 {[%emt 0:02:31]} 17. Bc4 {[%emt 0:03:48]} Bd6 {[%emt 0:01:40]} 18. Bxd6 {[%emt 0:01:18]} cxd6 {[%emt 0:00:03]} 19. b5 {[%emt 0:03:32]} d5 {[%emt 0:00:56]} 20. Bb3 {[%emt 0:00:21]} Nbd7 {[%emt 0:02:45]} 21. a4 {[%emt 0:01:09]} Qc7 {[%emt 0:01:36]} 22. Qc2 {[%emt 0:01:49]} Rfc8 {[%emt 0:00:28]} 23. Qxc7 {[%emt 0:00:54]} Rxc7 {[%emt 0:00:04]} 24. Rfb1 {[%emt 0:01:45]} Rb7 {[%emt 0:02:14]} 25. Bd1 {[%emt 0:01:43]} Nb6 {[%emt 0:02:36]} 26. a5 {[%emt 0:03:02]} Nc4 {[%emt 0:00:19]} 27. Nxc4 {[%emt 0:02:10]} dxc4 {[%emt 0:00:05]} 28. a6 {[%emt 0:01:35]} Rba7 {[%emt 0:00:54]} 29. b6 {[%emt 0:03:26]} Rxa6 {[%emt 0:00:22]} 30. Rxa6 {[%emt 0:00:13]} Rxa6 {[%emt 0:00:11]} 31. b7 {[%emt 0:00:09]} Nd7 {[%emt 0:00:12]} 32. b8=Q+ {[%emt 0:00:18]} Nxb8 {[%emt 0:00:27]} 33. Rxb8# {[%emt 0:00:07]} 1-0

[Event "CZE-ch Youth G10-G12-G14 2022"]
[Site "Luhacovice"]
[Date "2022.03.19"]
[Round "9.39"]
[White "Svrchokrylova, Ludmila"]
[Black "Vacekova Anita"]
[Result "0-1"]
[ECO "C30"]
[WhiteElo "1024"]
[BlackElo "1000"]
[Annotator "NA"]
[PlyCount "56"]
[EventDate "2022.03.12"]
[EventType "swiss"]
[EventCountry "CZE"]
[SourceTitle "playchess.com"]
[Source "ChessBase"]
[SourceQuality "1"]
[TimeControl "40/5400+30:1800+30"]

1. e4 {[%emt 0:00:30]} e5 {[%emt 0:00:04]} 2. f4 {[%emt 0:00:08]} d6 {[%emt 0:01:40]} 3. Nf3 {[%emt 0:00:19]} Nd7 {[%emt 0:00:51]} 4. Bc4 {[%emt 0:01:38]} Be7 {[%emt 0:00:51]} 5. d4 {[%emt 0:00:23]} exd4 {[%emt 0:02:58]} 6. Nxd4 {[%emt 0:00:26]} Ngf6 {[%emt 0:01:23]} 7. Nc3 {[%emt 0:00:18]} Nb6 {[%emt 0:00:37]} 8. Bd3 {[%emt 0:00:58]} O-O {[%emt 0:00:49]} 9. Be3 {[%emt 0:00:39]} Bd7 {[%emt 0:03:24]} 10. Qd2 {[%emt 0:00:36]} c5 {[%emt 0:01:58]} 11. Nf3 {[%emt 0:01:05]} d5 {[%emt 0:02:50]} 12. exd5 {[%emt 0:01:17]} Bg4 {[%emt 0:09:24]} 13. h3 {[%emt 0:00:27]} Bxf3 {[%emt 0:00:31]} 14. gxf3 {[%emt 0:00:29]} Nbxd5 {[%emt 0:00:38]} 15. Rg1 {[%emt 0:12:28]} Nxe3 {[%emt 0:02:38]} 16. Qxe3 {[%emt 0:02:29]} Qc7 {[%emt 0:01:34]} 17. O-O-O {[%emt 0:07:40]} c4 {[%emt 0:05:50]} 18. Bf5 {[%emt 0:06:12]} Bc5 {[%emt 0:01:08]} 19. Qe5 {[%emt 0:08:55]} Qxe5 {[%emt 0:00:25]} 20. fxe5 {[%emt 0:00:42]} Bxg1 {[%emt 0:00:16]} 21. Rxg1 {[%emt 0:00:39]} Nh5 {[%emt 0:00:25]} 22. Ne2 {[%emt 0:14:00]} Rfe8 {[%emt 0:01:27]} 23. f4 {[%emt 0:01:16]} g6 {[%emt 0:05:24]} 24. c3 {[%emt 0:06:19]} Ng7 {[%emt 0:01:45]} 25. Be4 {[%emt 0:03:07]} Re7 {[%emt 0:02:34]} 26. Bd5 {[%emt 0:03:37]} Rc8 {[%emt 0:00:53]} 27. Nd4 {[%emt 0:04:08]} a6 {[%emt 0:01:36]} 28. Nf3 {[%emt 0:01:26]} Rd7 {[%emt 0:03:55]} 0-1